{"text_format":"1","workbook":"xlsx","n_sheets":6,"sheets":["Introduction","Read me first","Foundations steps 1-3","Technical domains step 1 - map","Technical domains steps 1-3","Step 4 Action plan"],"not_rendered":{"charts":0,"images":3,"macros":1,"external_links":0,"defined_names":2,"comments":2,"pivot_tables":0},"unopened":[],"bounds":{"document_bytes":16777216,"sheet_cells":100000,"rows_first":2000,"rows_last":500,"rows_between":2000,"halvings":0,"cell_chars":16384,"cell_head_chars":4096},"cells_cut":0,"cells_raw":0,"read":"whole","date_system":"1900"}

{"sheet":"Introduction","index":0,"n_rows":29,"n_cols":6,"rows_kept":29,"cut":false,"hidden":false,"merged":[]}
[]
[]
[]
[]
[]
[]
[]
[]
[]
[]
[]
[]
[]
[]
[]
[]
[]
[]
[]
[]
[]
[]
[]
[]
[]
[]
[]
[]
[null,"Find out about becoming a partner ",null,null,null,"here"]

{"sheet":"Read me first","index":1,"n_rows":0,"n_cols":0,"rows_kept":0,"cut":false,"hidden":false,"merged":[]}

{"sheet":"Foundations steps 1-3","index":2,"n_rows":79,"n_cols":12,"rows_kept":79,"cut":false,"hidden":false,"merged":[[30,2,33,2],[34,2,35,2],[21,1,35,1],[3,2,4,2],[5,2,8,2],[9,2,12,2],[13,2,15,2],[17,2,20,2],[3,1,20,1],[28,2,29,2],[36,2,40,2],[41,2,44,2],[45,2,47,2],[36,1,47,1],[48,2,50,2],[76,6,78,6],[30,6,33,6],[34,6,35,6],[36,6,40,6],[41,6,44,6],[45,6,47,6],[48,6,50,6],[51,6,52,6],[62,6,63,6],[58,6,61,6],[53,6,57,6],[51,2,52,2],[48,1,57,1],[53,2,57,2],[64,6,69,6],[71,6,75,6],[64,2,69,2],[71,2,75,2],[76,2,78,2],[64,1,78,1],[58,1,63,1],[58,2,61,2],[62,2,63,2],[1,10,2,10],[1,1,1,3],[3,6,4,6],[21,6,22,6],[23,6,24,6],[9,6,12,6],[13,6,15,6],[17,6,20,6],[5,6,8,6],[21,2,22,2],[23,2,24,2],[2,1,2,3]]}
[]
[null,"Foundations",null,null,"Step 1. Map your coverage",null,"Step 1. Map your training",null,"Step 2. Assess your confidence",null,"4. Identifying Training/CPD\nLinks from website below?","Step 3. Review"]
[null,"Skills and behaviours: A.\t Personal qualities and attributes, B.\t Transferable skills, C.\t Self-management\nKnowledge and compliance: D.\t The boundaries of your service and of your role,   E.\t Signposting customers,   F.\t Compliance and safeguarding",null,null,"These are the 'must haves' for all Money Guiders; they have been pre-selected for you ",null,"Select yes or no to indicate if you have completed any recent training or CPD e.g. in the last three years ",null,"\n1 - Not at all confident\n2 - Somewhat confident\n3 - Mostly confident\n4 - Fully confident",null,null,"Choose some areas for development and give them a timeframe e.g. short-term (within 12 months), longer-term (12 months+)"]
[null,"A:\nPersonal qualities and attributes:\nThese qualities are at the core of The Framework. The breadth and complexity of information and guidance on money management and financial wellbeing means that practitioners need to draw deeply upon their personal qualities to handle the demands of the role.\n","A1 Personal integrity","A1.1\nI act with integrity and professionalism."]
[null,null,null,"A1.2\nI demonstrate a commitment to equal opportunities."]
[null,null,"A2. Self-awareness","A2.1\nI know my own strengths and limitations."]
[null,null,null,"A2.2\nI can learn from previous mistakes or misjudgements."]
[null,null,null,"A2.3\nI have an awareness of my own emotions, and know how to control them, adapting them appropriately to the situation."]
[null,null,null,"A2.4\nI am aware of my own personal impact on others, particularly when I am under pressure."]
[null,null,"\nA3. Impartiality\n","A3.1\nI provide guidance impartially, both in terms of the information I provide and in terms of any organisations I signpost the customer to. "]
[null,null,null,"A3.2\nI provide guidance objectively without allowing myself to be influenced by my own personal feelings or opinions. "]
[null,null,null,"A3.3\nI am empathetic and sensitive to the wishes of the customer, but do not allow these feelings of empathy to cloud the advice and guidance I provide. "]
[null,null,null,"A3.4\nI am aware of actual and potential conflicts of interest that relate to the guidance I provide, and that action needs to be taken in those circumstances."]
[null,null,"A4. Diplomacy","A4.1\nI am diplomatic, sensitive and skillful in managing relations with others."]
[null,null,null,"A4.2\nI am able to maintain a positive attitude."]
[null,null,null,"A4.3\nI am reliable.  "]
[null,null,"A5. Flexibility","A5.1\nI am flexible in my approach, showing awareness and understanding of the needs and preferences of others."]
[null,null,"A6. Rapport building","A6.1\nI can empathise with a customer’s situation."]
[null,null,null,"A6.2\nI can gauge a customer’s current level of confidence and their ability to manage their money."]
[null,null,null,"A6.3\nWhen working face to face with customers, I understand the importance of non-verbal communication, such as body language, and how different cultures use and interpret body language in different ways."]
[null,null,null,"A6.4\nI have an understanding of the importance of building trust and rapport with others, and methods for achieving this in different situations (e.g. over the phone, individuals and in groups) and for a range of people, including customers with challenging behaviours."]
[null,"B: Transferable skills\nStrong transferrable skills are fundamental to the provision of impartial guidance on money management and financial wellbeing.  This includes working well with others – including colleagues and other agencies – as well as correctly using the appropriate organisational systems and procedures, keeping accurate records and attention to detail. Practitioners should also have good levels of literacy and numeracy to communicate what can often be complex information in a straightforward and understandable way\n","B1. Literacy","B1.1\nI can spell and use punctuation accurately, particularly when required to record customer information."]
[null,null,null,"B1.2\nI can produce accurate and succinct writing for record-keeping and making referrals:  practitioners working at tiers 2&3 only -  Not applicable for individuals working at tier 1."]
[null,null,"B2. Numeracy","B2.1\nI have the ability to reason and apply numerical concepts and understand fundamental arithmetic (i.e. addition, subtraction, multiplication and division)."]
[null,null,null,"B2.2\nI can calculate fractions; percentages; simple and compound interest where required: practitioners working at tiers 2&3 only -  not applicable for individuals working at tier 1."]
[null,null,"B3. IT","B3.1\nI have the computer skills to ensure accurate records can be maintained, and relevant information can be accessed in a timely, secure manner. "]
[null,null,"B4. Digital","B4.1\nIf my role requires it I am able to use online tools and calculators, as well as comparison sites (e.g. mortgage and/or benefits calculators) and can apply an element of critical analysis to judge the relevance and legitimacy of the information being presented."]
[null,null,"B5. Attention to detail","B5.1\nI am able to maintain clear and accurate records by paying attention to detail (including any reference numbers and codes; information about customers’ circumstances)."]
[null,null,"B6. Communication","B6.1\nWhen communicating with others, I use appropriate language, respecting equality and diversity and, where relevant, use appropriate non-verbal cues."]
[null,null,null,"B6.2\nI can communicate effectively both verbally and in writing. "]
[null,null,"B7. Working with others","B7.1\nI can identify and confirm the needs and expectations of colleagues and customers, establishing and maintaining productive working relationships with relevant people."]
[null,null,null,"B7.2\nI have the ability to deal with disagreements in an amicable and constructive way to maintain good relationships. "]
[null,null,null,"B7.3\nWhere appropriate, I can contribute actively to effective team working by co-operating with colleagues using appropriate methods of communication."]
[null,null,null,"B7.4\nWhere appropriate, I can identify conflicts which may cause problems to productivity and promptly seek solutions from the responsible person."]
[null,null,"B8. Record-keeping","B8.1\nI can record relevant information in a manner which is easy to follow and allows other workers to understand it, ensuring that information is grouped logically and is readily accessible."]
[null,null,null,"B8.2\nI can identify barriers or factors that might impact on outcomes and exchange information according to organisational procedures. "]
[null,"C: Self-management\nThis domain is about maintaining adequate knowledge and skills to deliver a good service and, in some cases, developing knowledge and skills in order to provide guidance at a higher tier. This may mean keeping up to date on financial matters, for example, updates to legislation and regulations and key organisations which is important for ensuring that practitioners are giving accurate and up to date information, and for knowing where to signpost customers. In addition, it may involve self-reflection, gaining knowledge or improving skills. Practitioners may develop their practice using either formal and/or informal methods.\n","C1. Self-management","C1.1\nI can use self-management skills, and emotional self-awareness, to help me regulate my behaviour, even when provoked. "]
[null,null,null,"C1.2\nI recognise the limits of my authority and know the actions to be taken when that limit is reached. "]
[null,null,null,"C1.3\nI am tenacious and resilient in the face of difficulty. "]
[null,null,null,"C1.4\nI am able to cope with an increasingly complex environment – with the blurring of organisational boundaries and the requirement to work in partnership with other organisations (e.g. when making or taking referrals). "]
[null,null,null,"C1.5\nI take appropriate time for reflection and seek out appropriate personal support when needed, for example when/after dealing with complex or traumatic cases."]
[null,null,"C2. Improve practice","C2.1\nI am able to accept feedback/criticism in a positive manner and assess its validity and importance. "]
[null,null,null,"C2.2\nI seek to evaluate my own performance, either against set targets and goals, or by reflecting on my own work and actions. "]
[null,null,null,"C2.3\nI can set and prioritise clear and realistic goals and targets for my own development. "]
[null,null,null,"C2.4\nI can use a range of valid and reliable evidence to assess my work, including assessing the effects of my behaviour and values on others, as a critical part of improving my own practice and continuing professional development."]
[null,null,"C3. Continuing professional development","C3.1\nI keep up to date with legislation, codes of practice and guidelines, and understand the importance of complying with national, local, professional and organisational requirements. "]
[null,null,null,"C3.2\nI maintain an understanding of the limitations of my role, my own limits and those of the service. "]
[null,null,null,"C3.3\nI maintain the required soft skills necessary to deal with customers e.g. effective communication skills."]
[null,"D: The boundaries of your service and of your role\n\nEvery practitioner must be aware of what they can and cannot say to customers, depending on the organisation he or she works for, and depending on the type of advice and guidance being given. \n","D1. Regulated financial products and activities\nNB: The Financial Conduct Authority (FCA) maintains a list of financial activities they regulate at:\nwww.fca.org.uk/firms/authorisation/how-to-apply/activities\n","D1.1\nI understand the scope of information and guidance which can be provided in my role, and that ‘advice’ and recommendations are regulated activities. \n"]
[null,null,null,"D1.2\nI have a broad understanding of the types of activities that are beyond the remit of my role (e.g. debt advice, consumer credit, investment businesses, funeral plan contracts, electronic money, insurance business and distribution, operating a dormant account, home finance)."]
[null,null,null,"D1.3\nI understand the difference between providing information and guidance, and advice, particularly with relevance to regulated financial products and activities."]
[null,null,"D2. Introduce the service to others","D2.1\nI provide information to customers about the service I am providing, including explaining what information I can and cannot provide."]
[null,null,null,"D2.2\nI provide information to customers about the service I am providing, including explaining any costs and fees associated with using the service, if applicable."]
[null,null,"D3. Providing Support within the limits of your role","D3.1\nI can provide information and guidance within the limits of relevant financial regulations and in line with organisational policies and procedures and how to check customers’ understanding."]
[null,null,null,"D3.2\nWhere appropriate I can agree with customers any further activities that are necessary to meet their needs."]
[null,null,null,"D3.3\nI can identify any needs that cannot be met and refer customers to alternative sources in line with organisation policies and procedures."]
[null,null,null,"D3.4\nI know of local and/or national organisations to which customers can be signposted or referred."]
[null,null,null,"D3.5\nI know of relationships between my organisation and other external organisations and agencies to which customers can be signposted or referred."]
[null,"E: Signposting customers\nAll practitioners – no matter their job role – must be able to elicit simple, factual information from the customer in order to signpost them to appropriate sources of further support, advice or information. \n","E1. Obtaining information","E1.1\nI am aware of different reasons customers may have for seeking information."]
[null,null,null,"E1.2\nI am aware of the type of information or areas in which support might be sought (e.g. debt, borrowing, welfare and benefits)."]
[null,null,null,"E1.3\nI am aware of the importance of timely action."]
[null,null,null,"E1.4\nI can ask basic questions to obtain information about the customer’s circumstances."]
[null,null,"E2. Signpost","E2.1\nI can signpost the customer to appropriate sources of further information or support, in line with organisational procedures."]
[null,null,null,"E2.2\nWhere red flags are identified, I alert customers and/or refer them to appropriate authorities (e.g. police, food bank, shelters) – as per my organisation’s own policy."]
[null,"F: Compliance and safeguarding\nThis domain is about working legally and safely. This means working in compliance with the relevant regulations, legislation and organisational procedures that govern confidentiality and data protection, as well as those that protect the rights of customers. Practitioners must also work safely to protect themselves and others from any physical risk\nor hazards.\n","F1. Handle information safely and securely","F1.1\nI understand the legal requirements for the protection of personal data (Data Protection Act, GDPR)."]
[null,null,null,"F1.2\nI apply organisational protocols and principles for the storage and security of personal data."]
[null,null,null,"F1.3\nI understand and respect individuals’ right to confidentiality. "]
[null,null,null,"F1.4\nI understand who is entitled to access records/data."]
[null,null,null,"F1.5\nI keep accurate records in line with security, confidentiality and data protection."]
[null,null,null,"F1.6\nI handle and destroy data safely."]
[null,null,"F2. Health and safety","F2.1\nI understand and comply with health and safety procedures in the workplace."]
[null,null,"F3. Safeguarding","F3.1\nI understand that vulnerable groups can be particularly at risk of financial and other types of abuse. "]
[null,null,null,"F3.2\nI understand that I may be required to undergo certain checks (e.g. Disclosure and Barring Service) to provide face to face guidance to certain groups."]
[null,null,null,"F3.3\nI support practices that help to safeguard individuals from harm or abuse."]
[null,null,null,"F3.4\nI am aware of the appropriate actions to take when faced with cases of actual or potential harm or abuse."]
[null,null,null,"F3.5\nI know of organisations and agencies to which safeguarding concerns can or should be reported."]
[null,null,"F4. Dealing with poor, illegal or unsafe practice","F4.1\nI understand how to identify poor, illegal or unsafe practice. "]
[null,null,null,"F4.2\nI understand my own responsibilities for reporting bad, illegal or unsafe practice."]
[null,null,null,"F4.3\nI understand the escalation procedures and systems for reporting (internally and to outside agencies)."]

{"sheet":"Technical domains step 1 - map","index":3,"n_rows":23,"n_cols":5,"rows_kept":23,"cut":false,"hidden":false,"merged":[[25,2,25,4],[18,1,18,4],[20,2,20,4],[22,2,22,4],[1,1,1,4]]}
[]
[null,"OVERVIEW OF TECHNICAL DOMAINS AND TIERS \nEach of the 12 domains is tiered, according to the level of complexity. All domains have at least one tier, others have up to three. \nSelect yes for the domains and tiers that relate to your role."]
[null,null,"Tier 1","Tier 2","Tier 3"]
[null,null,"At this level you:\n• provide customers with factual information (or access to the information) enabling them to do more about their own situation\n• have a general awareness of other services or resources that might be able to offer further help and advice and part of this role involved signposting customers to these\n• explain terminology or provide clarification of a document (e.g a bank statement)\n• do not provide information or guidance tailored to customers’ circumstances, but provide generalist information which customers act on\n• ensure responsibility for further action lies with the customer","At this level you:\n• focus on customers’ individual circumstances, exploring their needs, setting out options available to them and identifying implications and  consequences of actions\n• may see the same customer(s) on an ongoing basis\n• may offer practical assistance with interpreting letters and forms\n• signpost customers to other sources and agencies and you might formally referring customers to other organisations\n• may offer some coaching to improve their financial capability and money management skills ","At this level you:\n• focus on specialist areas of bespoke information provision\n• will likely specialise in a particular area such as benefits and welfare, or housing\n• have an In-depth knowledge of the relevant regulations and organisations, as well as features of specific products and services\n• have well-developed questioning and listening skills, and the confidence to deal with complex cases\n• may be involved with case work"]
[null,"1.     Knowing your customer","No","No"]
[null,"2.     Debt","No"]
[null,"3.     Borrowing",{"$f":"IF(D7=\"Yes\",\"Yes\",\"No\")","v":"No"},"No"]
[null,"4.     Welfare and benefits","No","No"]
[null,"5.     Budgeting and cashflow","No","No","No"]
[null,"6.     Savings","No","No"]
[null,"7.     Investments",{"$f":"IF(D11=\"Yes\",\"Yes\",\"No\")","v":"No"},{"$f":"IF(E11=\"Yes\",\"Yes\",\"No\")","v":"No"},"No"]
[null,"8.     Taxation","No","No","No"]
[null,"9.     Insurance","No","No"]
[null,"10.  Households",{"$f":"IF(D14=\"Yes\",\"Yes\",\"No\")","v":"No"},{"$f":"IF(E14=\"Yes\",\"Yes\",\"No\")","v":"No"},"No"]
[null,"11.  Pensions","No","No","No"]
[null,"12.  Planning for later life",{"$f":"IF(D16=\"Yes\",\"Yes\",\"No\")","v":"No"},{"$f":"IF(E16=\"Yes\",\"Yes\",\"No\")","v":"No"},"No"]
[]
[]
[]
[]
[]
[]
[null,null,"  "]

{"sheet":"Technical domains steps 1-3","index":4,"n_rows":300,"n_cols":12,"rows_kept":300,"cut":false,"hidden":false,"merged":[[273,1,273,3],[2,1,2,2],[3,1,3,2],[190,1,190,3],[89,1,89,2],[166,1,166,2],[216,1,216,3],[242,1,242,3],[64,1,64,3],[37,1,37,3],[23,1,23,3],[117,1,117,3],[142,1,142,3]]}
[]
[]
[null,"Technical domains and tiers\n",null,"Step 1. Map your coverage",null,"Step 1. Map your training",null,"Step 2. Assess your confidence",null,"Step 3. Review",null,"List for action plan"]
[null,"DOMAIN 1: KNOWING YOUR CUSTOMER\n",null,"Indicate the competencies where you provide guidance and where you do not provide guidance yet",null,"Select yes or no to indicate if you have completed any recent training or other CPD e.g in the last 3 years",null,"1 - not at all confident\n2 - somewhat confident\n3 - mostly confident\n4 - fully confident\n",null,"Choose some areas for development and give them a timeframe e.g. short term (within 12 months), longer term (12 months+)",null,"Green: within 6-12 months\nAmber: within 1-2 yrs"]
[]
[null,"TIER 1"]
[null,"1.1.1","I ask questions and listen carefully to the customers’ responses, clarifying when appropriate, to determine the complexity and urgency of need.",null,null,null,null,null,null,null,null,{"$f":"IF(J7=\"\",\"\",_xlfn.CONCAT(B7,\"-\",C7,))","v":""}]
[null,"1.1.2","I am aware of the holistic nature of money guidance, and that many areas are linked (e.g. debt and benefits; homes and mortgages and borrowing etc.).",null,null,null,null,null,null,null,null,""]
[null,"1.1.3","I am aware of the ways in which life events can affect an individual’s circumstances, for example:\n• illness \n• having a baby or child, including adopting and fostering\n• new job, moving jobs, redundancy\n• bereavement\n• divorce, separation and relationship breakdown\n• major purchases\n",null,null,null,null,null,null,null,null,""]
[null,"1.1.4","I am aware of the ‘red flags’ indicating urgent need and/or vulnerability, and how to identify them:\n• risk of self-harm/safeguarding risk\n• no food\n• risk of homelessness\n• bailiff/sheriff officers and/or enforcement action\n• economic and financial abuse",null,null,null,null,null,null,null,null,""]
[null,"1.1.5","I am aware of Power of Attorney and third party access.",null,null,null,null,null,null,null,null,""]
[null,"1.1.6","I am aware of scams and what to do if a customer has been the subject of a scam.",null,null,null,null,null,null,null,null,""]
[null,"TIER 2",null,null,null,null,null,null,null,null,null,{"$f":"IF(J13=\"\",\"\",_xlfn.CONCAT(B13,\"-\",J13))","v":""}]
[null,"1.2.1","I ask detailed and probing questions, listening carefully to:\n• understand customers’ own awareness of their need and their level of prior understanding\n• understand if customers’ circumstances have recently changed or if they are likely to\n• explore options, their pros and cons and whether alternatives might be more suitable (e.g. saving instead of borrowing) to the customers’ circumstances \n• identify any additional problems or needs",null,null,null,null,null,null,null,null,""]
[null,"1.2.2","I ask detailed and specific questions about customers’ individual circumstances which may include personal data and sensitive information.",null,null,null,null,null,null,null,null,""]
[null,"1.2.3","I help customers to identify their own issues, goals and priorities, including any potential challenges or barriers.",null,null,null,null,null,null,null,null,""]
[null,"1.2.4","I check customers’ understanding of their options, assessing their level of understanding through questioning.",null,null,null,null,null,null,null,null,""]
[null,"1.2.5","I clarify customers’ goals, expectations and, where appropriate, an understanding of the service and its policies. ",null,null,null,null,null,null,null,null,""]
[null,"1.2.6","I conduct research\n• into local, regional and national agencies for signposting and referrals\n• to identify up to date information concerning the customers’ need or issue\n• to find out, understand and use evidence and insight that relates to delivering money guidance",null,null,null,null,null,null,null,null,""]
[null,"1.2.7","I understand how much information should be provided for different types of customers/what type of information is suitable.",null,null,null,null,null,null,null,null,""]
[null,"1.2.8","I understand how to address concerns about fraud or identity theft.",null,null,null,null,null,null,null,null,""]
[null,"1.2.9","I facilitate customers to act on their own behalf, where appropriate with the aim of empowering them to manage their own affairs and change behaviours.",null,null,null,null,null,null,null,null,""]
[null,null,null,null,null,null,null,null,null,null,null,""]
[null,"DOMAIN 2: DEBT\n",null,null,null,null,null,null,null,null,null,""]
[null,"TIER 1",null,null,null,null,null,null,null,null,null,""]
[null,"2.1.1 ","I am aware of the common types of debt on which customers typically seek advice and guidance (e.g. credit  cards, loans, council tax/rates etc.).",null,null,null,null,null,null,null,null,""]
[null,"2.1.2     ","I am aware of the difference between priority and non-priority debts.",null,null,null,null,null,null,null,null,""]
[null,"2.1.3     ","I am aware off the likely triggers for debt.",null,null,null,null,null,null,null,null,""]
[null,"2.1.4","I am aware of reasons why individuals might seek out loans from illegal or dubious source such as loan sharks, family and friends and typical issues this can cause.",null,null,null,null,null,null,null,null,""]
[null,"2.1.5","I can determine if customers are managing to keep up with payments, if they cannot cope, or if there is an urgent situation (e.g. enforcement agents).",null,null,null,null,null,null,null,null,""]
[null,"2.1.6","I signpost or refer customers to appropriate local and national organisations that provide advice and guidance  on debt issues and sources of support.",null,null,null,null,null,null,null,null,""]
[null,"2.1.7","I support customers in accessing online portals and using toolkits, which might include completing information on their behalf.",null,null,null,null,null,null,null,null,""]
[null,"2.1.8","I provide factual information in response to specific, targeted questions (e.g. describing a debt management plan; individual voluntary arrangement etc.).",null,null,null,null,null,null,null,null,""]
[null,"2.1.9     ","I am aware of scams and what to do if a customer has been the subject of a scam.",null,null,null,null,null,null,null,null,""]
[null,null,null,null,null,null,null,null,null,null,null,""]
[null,null,null,null,null,null,null,null,null,null,null,""]
[null,null,null,null,null,null,null,null,null,null,null,""]
[null,"DOMAIN 3: BORROWING\n",null,null,null,null,null,null,null,null,null,""]
[null,"TIER 1",null,null,null,null,null,null,null,null,null,""]
[null,"3.1.1 ","I am aware of main sources of credit and lending and the differences between them.",null,null,null,null,null,null,null,null,""]
[null,"3.1.2     ","I am aware of sources of illegal or informal money lending, such as loan sharks, family and friends.",null,null,null,null,null,null,null,null,""]
[null,"3.1.3     ","I am aware of the sources of affordable credit available to those with poor credit history, such as credit unions.",null,null,null,null,null,null,null,null,""]
[null,"3.1.4","I am aware of how to work out the costs involved in borrowing.",null,null,null,null,null,null,null,null,""]
[null,"3.1.5","I am aware of the difference between secured and unsecured borrowing.",null,null,null,null,null,null,null,null,""]
[null,"3.1.6","I am aware of the process of buying a home (e.g. securing a mortgage; valuation and surveys; removals etc.).",null,null,null,null,null,null,null,null,""]
[null,"3.1.7","I signpost or refer customers to appropriate sources of information on loans and other products, including price comparison sites.",null,null,null,null,null,null,null,null,""]
[null,"3.1.8","I am aware of scams and what to do if a customer has been the subject of a scam.",null,null,null,null,null,null,null,null,""]
[null,"TIER 2",null,null,null,null,null,null,null,null,null,""]
[null,"3.2.1 ","I have knowledge of how guarantor loans operate.",null,null,null,null,null,null,null,null,""]
[null,"3.2.2","I have knowledge of credit scores, how they can be affected (including how they can be improved) and how they are used.",null,null,null,null,null,null,null,null,""]
[null,"3.2.3","I have knowledge of how to correct incorrect information on a credit file.",null,null,null,null,null,null,null,null,""]
[null,"3.2.4","I have knowledge of the range of sources of credit and borrowing.",null,null,null,null,null,null,null,null,""]
[null,"3.2.5","I have knowledge of the types of products that are available to individuals with poor credit history.",null,null,null,null,null,null,null,null,""]
[null,"3.2.6","I have knowledge of sources of guidance for calculating interest and repayments, such as online calculators. ",null,null,null,null,null,null,null,null,""]
[null,"3.2.7","I have knowledge of credit reference agencies and organisations.",null,null,null,null,null,null,null,null,""]
[null,"3.2.8","I have knowledge of how to use price comparison sites, calculators and other tools, and advise customers on their use.",null,null,null,null,null,null,null,null,""]
[null,"3.2.9","I have knowledge of the typical costs involved in moving home (e.g. removal, storage; furnishings and decoration etc.).",null,null,null,null,null,null,null,null,""]
[null,"3.2.10","I have knowledge of the up-front and ongoing costs involved in home-ownership (legal fees; stamp duty/land transaction tax; maintenance etc.).",null,null,null,null,null,null,null,null,""]
[null,"3.2.11","I have knowledge of the factors that are taken into account by lenders when making a mortgage offer.",null,null,null,null,null,null,null,null,""]
[null,"3.2.12","I have knowledge of government and other low-cost buying and ‘assist-to-buy’/assisted home ownership schemes (including shared ownership).",null,null,null,null,null,null,null,null,""]
[null,"3.2.13","I have knowledge of the different types of mortgages (e.g. interest-only; variable rate; tracker etc.).",null,null,null,null,null,null,null,null,""]
[null,null,null,null,null,null,null,null,null,null,null,""]
[null,null,null,null,null,null,null,null,null,null,null,""]
[null,null,null,null,null,null,null,null,null,null,null,""]
[null,"DOMAIN 4: WELFARE AND BENEFITS\n",null,null,null,null,null,null,null,null,null,""]
[null,"TIER 1",null,null,null,null,null,null,null,null,null,""]
[null,"4.1.1 ","I am aware of the main benefits available, covering the life events relevant to my customers (e.g. births, deaths, bringing up children, divorce/separation, job loss, retirement, illness and disability, caring).",null,null,null,null,null,null,null,null,""]
[null,"4.1.2     ","I am aware of which agencies and offices administer different types of benefits (e.g. DWP, HMRC, Local Authorities etc.).",null,null,null,null,null,null,null,null,""]
[null,"4.1.3     ","I am aware of which organisations offer specialist benefits advice and tools for benefits calculations. I am familiar with websites and how to refer customers to them.",null,null,null,null,null,null,null,null,""]
[null,"4.1.4","I am aware of Appointeeships.",null,null,null,null,null,null,null,null,""]
[null,"4.1.5","I can identify any vulnerabilities in customers which may prove a barrier to making or managing a successful benefit claim (or dealing with a benefits problem).",null,null,null,null,null,null,null,null,""]
[null,"4.1.6","I signpost to relevant sources of support (e.g. literacy and numeracy, mental health, substance misuse, physical mobility, digital confidence and access, economic or domestic abuse).",null,null,null,null,null,null,null,null,""]
[null,"4.1.7","I am aware of scams and what to do if a customer has been the subject of a scam.",null,null,null,null,null,null,null,null,""]
[null,"TIER 2",null,null,null,null,null,null,null,null,null,""]
[null,"4.2.1 ","I have knowledge of the application process for welfare benefits and the basic information required (e.g. which forms of ID are acceptable, which banks offer fee-free basic bank accounts, how to provide proof of address etc.).",null,null,null,null,null,null,null,null,""]
[null,"4.2.2","I have knowledge of the financial considerations of making and managing a Universal Credit (UC) claim (e.g. payment in arrears, needing a transactional bank account, managing five-week wait for first payment etc.)",null,null,null,null,null,null,null,null,""]
[null,"4.2.3","I have knowledge of other government and non-government sources of support (e.g. Budgeting loans and  advances, local welfare assistance funds, grants and discounts etc.).",null,null,null,null,null,null,null,null,{"$f":"IF(J77=\"\",\"\",_xlfn.CONCAT(B77,\"-\",J77))","v":""}]
[null,"4.2.4","I have knowledge of the range of government benefits and statutory payments available and the ability to use this  to explore a customer’s situation to give an indication of the benefits that are likely to be available to them.",null,null,null,null,null,null,null,null,""]
[null,"4.2.5","I have an understanding of the main eligibility criteria of benefit entitlement, appropriate to the individual and how a change in their circumstance can affect this.",null,null,null,null,null,null,null,null,""]
[null,"4.2.6","I have knowledge of where to signpost people to start benefits application, appropriate to the individual.",null,null,null,null,null,null,null,null,""]
[null,"4.2.7","I have an understanding of the principles of Universal Credit.",null,null,null,null,null,null,null,null,""]
[null,"4.2.8","I have an understanding of the process involved and impact on the customer when moving from legacy benefits onto UC and where to signpost for further support.",null,null,null,null,null,null,null,null,""]
[null,"4.2.9","I have an understanding of how the principle of means testing affects benefit eligibility and entitlement (e.g. how total household income and savings will affect benefits).",null,null,null,null,null,null,null,null,""]
[null,"4.2.10","I have an understanding of potential triggers within the benefits system for increased financial hardship and to explain to the customer how to mitigate (e.g. coping with gaps in benefit payments, sanctions, drop in income from migration to UC etc.).",null,null,null,null,null,null,null,null,""]
[null,"4.2.11","I have an understanding of how to use benefits calculator tools to assist a customer to get a better sense of how much they are likely to get, check if they will be better or worse off when moving from legacy benefits to UC.",null,null,null,null,null,null,null,null,""]
[null,"4.2.12","I signpost to appropriate support for disputing a benefits decision.",null,null,null,null,null,null,null,null,""]
[null,null,null,null,null,null,null,null,null,null,null,""]
[null,null,null,null,null,null,null,null,null,null,null,""]
[null,null,null,null,null,null,null,null,null,null,null,""]
[null,"DOMAIN 5: BUDGETING AND CASHFLOW\n\n",null,null,null,null,null,null,null,null,null,""]
[null,"TIER 1",null,null,null,null,null,null,null,null,null,""]
[null,"5.1.1 ","I am aware of the principles of budgeting.",null,null,null,null,null,null,null,null,""]
[null,"5.1.2     ","I am aware of available tools to assist with budgeting and planning.",null,null,null,null,null,null,null,null,""]
[null,"5.1.3     ","I am aware of methods for reducing household outgoings (e.g. switching energy or mobile provider etc.).",null,null,null,null,null,null,null,null,""]
[null,"5.1.4","I am aware of ways of increasing income (e.g. checking customers are receiving all the benefits to which they are entitled, selling unwanted goods etc.).",null,null,null,null,null,null,null,null,""]
[null,"5.1.5","I am aware of the different types of bank accounts (e.g. current, savings, joint etc.) and the differences between them.",null,null,null,null,null,null,null,null,""]
[null,"5.1.6","I am aware of the basic process of how to open a bank account, including the suitable documentation needed.",null,null,null,null,null,null,null,null,""]
[null,"5.1.7","I am aware of how to set up regular payments (e.g. standing orders, direct debits).",null,null,null,null,null,null,null,null,""]
[null,"5.1.8","I have an understanding of why a bank account is useful (e.g. keeping money secure; managing income/outgoings; receiving payments etc.).",null,null,null,null,null,null,null,null,""]
[null,"5.1.9","I can signpost or refer customers to appropriate sources of information on insurance products, including price comparison sites.",null,null,null,null,null,null,null,null,""]
[null,"5.1.10","I am aware of scams and what to do if a customer has been the subject of a scam.",null,null,null,null,null,null,null,null,""]
[null,"TIER 2",null,null,null,null,null,null,null,null,null,""]
[null,"5.2.1 ","I have knowledge of how to complete (or assist/guide) a straight-forward personal budget sheet/financial statement.",null,null,null,null,null,null,null,null,""]
[null,"5.2.2","I have knowledge of methods for reducing monthly outgoings.",null,null,null,null,null,null,null,null,""]
[null,"5.2.3","I have knowledge of how to make digital payments and use online digital banking facilities and apps.",null,null,null,null,null,null,null,null,""]
[null,"5.2.4","I have knowledge of typical day to day and often overlooked expenses that should be budgeted for.",null,null,null,null,null,null,null,null,""]
[null,"5.2.5","I have knowledge of the advantages and risks of using fin-tech (e.g. money management apps, online/ mobile banking, digital payments etc.) and how it can assist with budgeting and monitoring income and outgoings.",null,null,null,null,null,null,null,null,""]
[null,"5.2.6","I have knowledge of how to address concerns about fraud or identity theft.",null,null,null,null,null,null,null,null,""]
[null,"5.2.7","I have knowledge of basic banking product features, benefits, exclusions and warranties.",null,null,null,null,null,null,null,null,""]
[null,"5.2.8","I have knowledge of a variety of methods of income maximisation.",null,null,null,null,null,null,null,null,""]
[null,"TIER 3",null,null,null,null,null,null,null,null,null,""]
[null,"5.3.1 ","I have detailed knowledge of how to draw up a comprehensive budget and use a budget planner to break down spending.",null,null,null,null,null,null,null,null,""]
[null,"5.3.2","I have detailed knowledge of how to use toolkits and online calculators and how to advise on getting the best out of them.",null,null,null,null,null,null,null,null,""]
[null,"5.3.3","I can facilitate customers to act on their own behalf where appropriate, with the aim of empowering them to  budget and manage cashflow independently and change their behaviour.",null,null,null,null,null,null,null,null,""]
[null,null,null,null,null,null,null,null,null,null,null,""]
[null,null,null,null,null,null,null,null,null,null,null,""]
[null,null,null,null,null,null,null,null,null,null,null,""]
[null,"DOMAIN 6: SAVINGS\n\n\n",null,null,null,null,null,null,null,null,null,""]
[null,"TIER 1",null,null,null,null,null,null,null,null,null,""]
[null,"6.1.1 ","I am aware of the benefits of saving.",null,null,null,null,null,null,null,null,""]
[null,"6.1.2     ","I am aware of strategies to help people save and overcome behavioural barriers (e.g. using a separate account for saving; saving on payday rather than at the end of the month etc.).",null,null,null,null,null,null,null,null,""]
[null,"6.1.3     ","I am aware of the differences between saving versus borrowing.",null,null,null,null,null,null,null,null,""]
[null,"6.1.4","I am aware of the difference between savings and investments.",null,null,null,null,null,null,null,null,""]
[null,"6.1.5","I am aware of the availability of a broad range of savings products on the market, including informal savings products.",null,null,null,null,null,null,null,null,""]
[null,"6.1.6","I am aware of how to set up regular payments into a savings account.",null,null,null,null,null,null,null,null,""]
[null,"6.1.7","I am aware of how to compare the features of different savings products.",null,null,null,null,null,null,null,null,""]
[null,"6.1.8","I can signpost or refer customers to appropriate sources of information on savings products, including price comparison sites.",null,null,null,null,null,null,null,null,""]
[null,"6.1.9","I am aware of scams and what to do if a customer has been the subject of a scam.",null,null,null,null,null,null,null,null,""]
[null,"TIER 2",null,null,null,null,null,null,null,null,null,""]
[null,"6.2.1 ","I have an understanding of how to calculate the affordability of saving and the factors to take into account (e.g. using a budget planner).",null,null,null,null,null,null,null,null,""]
[null,"6.2.2","I have an understanding of how to calculate the minimum savings required to provide security for an individual, based on their individual circumstances (e.g. income and outgoings).",null,null,null,null,null,null,null,null,""]
[null,"6.2.3","I have an understanding of the difference between simple and compound interest.",null,null,null,null,null,null,null,null,""]
[null,"6.2.4","I have an understanding of ways of maximising savings.",null,null,null,null,null,null,null,null,""]
[null,"6.2.5","I have an understanding of the circumstances in which investments may be suitable for an individual to consider, and the risks involved.",null,null,null,null,null,null,null,null,""]
[null,"6.2.6","I have an understanding of mechanisms and behaviours for developing a savings habit.",null,null,null,null,null,null,null,null,""]
[null,"6.2.7","I have knowledge of the broad range of savings products available on the market (e.g. easy access, notice savings, ISAs etc.).",null,null,null,null,null,null,null,null,""]
[null,"6.2.8","I have knowledge of the range of accounts available for different age groups (e.g. children’s accounts and trusts etc.) the range of taxable and non-taxable savings products, the advantages and disadvantages of each.",null,null,null,null,null,null,null,null,""]
[null,"6.2.9","I have knowledge of ways of increasing tax efficiency (e.g. use of tax-free savings products: ISAs etc.).",null,null,null,null,null,null,null,null,""]
[null,"6.2.10","I have knowledge of the Personal Savings Allowance.",null,null,null,null,null,null,null,null,""]
[null,null,null,null,null,null,null,null,null,null,null,""]
[null,null,null,null,null,null,null,null,null,null,null,{"$f":"IF(J141=\"\",\"\",_xlfn.CONCAT(B141,\"-\",J141))","v":""}]
[null,null,null,null,null,null,null,null,null,null,null,""]
[null,"DOMAIN 7. INVESTMENTS\n\n\n\n",null,null,null,null,null,null,null,null,null,""]
[null,"TIER 1",null,null,null,null,null,null,null,null,null,""]
[null,"7.1.1 ","I am aware of what an investment is.",null,null,null,null,null,null,null,null,""]
[null,"7.1.2     ","I am aware of the concept of risk versus reward and how this applies to investments.",null,null,null,null,null,null,null,null,""]
[null,"7.1.3     ","I am aware of scams and what to do if a customer has been the subject of a scam.",null,null,null,null,null,null,null,null,""]
[null,"TIER 2",null,null,null,null,null,null,null,null,null,""]
[null,"7.2.1 ","I have knowledge of different types of investment products.",null,null,null,null,null,null,null,null,""]
[null,"7.2.2","I am aware of investment principles.",null,null,null,null,null,null,null,null,""]
[null,"7.2.3","I am aware of trader funds.",null,null,null,null,null,null,null,null,""]
[null,"7.2.4","I am aware of what ‘shares’ are.",null,null,null,null,null,null,null,null,""]
[null,"7.2.5","I am aware of the rules of the use of Individual Savings Accounts (ISAs).",null,null,null,null,null,null,null,null,""]
[null,"7.2.6","I am aware of the practice of ‘wrapping investments’.",null,null,null,null,null,null,null,null,""]
[null,"TIER 3",null,null,null,null,null,null,null,null,null,""]
[null,"7.3.1 ","I have knowledge of regulated and unregulated products.",null,null,null,null,null,null,null,null,""]
[null,"7.3.2","I have knowledge of asset classes and diversification.",null,null,null,null,null,null,null,null,""]
[null,"7.3.3","I have knowledge of how shares and investments work.",null,null,null,null,null,null,null,null,""]
[null,"7.3.4","I have knowledge of different funds and how they are valued.",null,null,null,null,null,null,null,null,""]
[null,"7.3.5","I have knowledge of investment charges.",null,null,null,null,null,null,null,null,""]
[null,"7.3.6","I have knowledge of where to get detailed information about investments.",null,null,null,null,null,null,null,null,""]
[null,"7.3.7","I have knowledge of the types of fees of Independent Financial Advisers (IfAs).",null,null,null,null,null,null,null,null,""]
[null,"7.3.8","I have knowledge of the importance of using an IfA.",null,null,null,null,null,null,null,null,""]
[null,null,null,null,null,null,null,null,null,null,null,""]
[null,null,null,null,null,null,null,null,null,null,null,""]
[null,null,null,null,null,null,null,null,null,null,null,""]
[null,"DOMAIN 8: TAXATION\n \n\n\n",null,null,null,null,null,null,null,null,null,""]
[null,"TIER 1",null,null,null,null,null,null,null,null,null,""]
[null,"8.1.1 ","When I know there is a taxation issue, I am aware of, and can signpost to, relevant source and information (e.g. to websites and to HMRC website etc.).",null,null,null,null,null,null,null,null,""]
[null,"8.1.2     ","I am aware of tax related communications from HMRC.",null,null,null,null,null,null,null,null,""]
[null,"8.1.3     ","I am aware of tax bands and of personal allowances (e.g. married persons allowance).",null,null,null,null,null,null,null,null,""]
[null,"8.1.4","I am aware of saving allowances.",null,null,null,null,null,null,null,null,""]
[null,"8.1.5","I am aware of issues around income tax, capital gains tax and inheritance tax.",null,null,null,null,null,null,null,null,""]
[null,"8.1.6","I am aware of the differences between employment and self-employment.",null,null,null,null,null,null,null,null,""]
[null,"8.1.7","I can signpost or refer customers to appropriate sources of information on taxation.",null,null,null,null,null,null,null,null,""]
[null,"8.1.8","I am aware of scams and what to do if a customer has been the subject of a scam.",null,null,null,null,null,null,null,null,""]
[null,"TIER 2",null,null,null,null,null,null,null,null,null,""]
[null,"8.2.1 ","I have knowledge and understanding of tax related communications from HMRC.",null,null,null,null,null,null,null,null,""]
[null,"8.2.2","I have knowledge of capital gains tax calculations and what tax the customer should pay.",null,null,null,null,null,null,null,null,""]
[null,"8.2.3","I have knowledge of how tax bands work and of personal allowances (e.g. married persons allowance).",null,null,null,null,null,null,null,null,""]
[null,"8.2.4","I have knowledge of stamp duty / land transaction tax.",null,null,null,null,null,null,null,null,""]
[null,"8.2.5","I have knowledge of rules changing.",null,null,null,null,null,null,null,null,""]
[null,"8.2.6","I have knowledge of how saving allowances interact.",null,null,null,null,null,null,null,null,""]
[null,"8.2.7","I have knowledge of issues around income tax, capital gains tax and inheritance tax.",null,null,null,null,null,null,null,null,""]
[null,"8.2.8","I have knowledge of the differences between employment and self-employment.",null,null,null,null,null,null,null,null,""]
[null,"TIER 3",null,null,null,null,null,null,null,null,null,""]
[null,"8.3.1 ","I have detailed knowledge and understanding of the consequences of tax related communications from HMRC.",null,null,null,null,null,null,null,null,""]
[null,null,null,null,null,null,null,null,null,null,null,""]
[null,null,null,null,null,null,null,null,null,null,null,""]
[null,null,null,null,null,null,null,null,null,null,null,""]
[null,"DOMAIN 9: INSURANCE\n\n\n \n\n\n",null,null,null,null,null,null,null,null,null,""]
[null,"TIER 1",null,null,null,null,null,null,null,null,null,""]
[null,"9.1.1 ","I am aware of the purpose and benefits of insurance.",null,null,null,null,null,null,null,null,""]
[null,"9.1.2     ","I am aware of the main types of insurance products (e.g. buildings and contents; vehicle; travel etc.).",null,null,null,null,null,null,null,null,""]
[null,"9.1.3     ","I am aware of different types of protection insurance.",null,null,null,null,null,null,null,null,""]
[null,"9.1.4","I am aware of national and local sources of guidance on insurance products, including comparison sites.",null,null,null,null,null,null,null,null,""]
[null,"9.1.5","I am aware of the importance of shopping around for an insurance policy and keeping insurance providers up-to date with changes to circumstances.",null,null,null,null,null,null,null,null,""]
[null,"9.1.6","I am aware of how to make an insurance claim.",null,null,null,null,null,null,null,null,""]
[null,"9.1.7","I can signpost or refer customers to appropriate sources of information on insurance products, including price comparison sites.",null,null,null,null,null,null,null,null,""]
[null,"9.1.8","I am aware of scams and what to do if a customer has been the subject of a scam.",null,null,null,null,null,null,null,null,""]
[null,"TIER 2",null,null,null,null,null,null,null,null,null,""]
[null,"9.2.1 ","I have knowledge of a range of different types of insurance, whether they are mandatory, and their purposes (e.g. Home Buildings Insurance, Vehicle Insurance, Guaranteed Asset Protection (GAP) Insurance, etc.).",null,null,null,null,null,null,null,null,""]
[null,"9.2.2","I have knowledge of ways in which insurance products can be purchased (e.g. brokers, comparison sites, supermarkets etc.).",null,null,null,null,null,null,null,null,""]
[null,"9.2.3","I have knowledge of how to search for insurances which may have been forgotten. ",null,null,null,null,null,null,null,null,""]
[null,"9.2.4","I have knowledge of insurance claims procedures including steps involved and likely timescales.",null,null,null,null,null,null,null,null,{"$f":"IF(J205=\"\",\"\",_xlfn.CONCAT(B205,\"-\",J205))","v":""}]
[null,"9.2.5","I have knowledge of the regulations covering insurance.",null,null,null,null,null,null,null,null,""]
[null,"9.2.6","I have an understanding of the factors to take into account when assessing whether or not to take out an insurance policy.",null,null,null,null,null,null,null,null,""]
[null,"9.2.7","I have an understanding of what counts towards the risk when taking out an insurance policy, and how risk factors affect insurance premiums.",null,null,null,null,null,null,null,null,""]
[null,"9.2.8","I have an understanding of the circumstances under which a customer may require specialist insurance and methods of securing this (including referrals to the British Insurance Brokers’ Association (BIBA)).",null,null,null,null,null,null,null,null,""]
[null,"9.2.9","I have an understanding of the different types of protection insurance and their main features.",null,null,null,null,null,null,null,null,""]
[null,"9.2.10","I have an understanding of the process of making an insurance claim.",null,null,null,null,null,null,null,null,""]
[null,"9.2.11","I have an understanding of how to make a complaint when something goes wrong.",null,null,null,null,null,null,null,null,""]
[null,"9.2.12","I have an understanding of the ability to use comparison sites to compare insurance policies and quotes.",null,null,null,null,null,null,null,null,""]
[null,null,null,null,null,null,null,null,null,null,null,""]
[null,null,null,null,null,null,null,null,null,null,null,""]
[null,null,null,null,null,null,null,null,null,null,null,""]
[null,"DOMAIN 10: HOUSEHOLDS\n\n\n \n\n\n",null,null,null,null,null,null,null,null,null,""]
[null,"TIER 1",null,null,null,null,null,null,null,null,null,""]
[null,"10.1.1 ","I am aware of the typical costs involved in renting or owning a home (deposit; rent/mortgage; service and utilities – water, gas, electricity etc.).",null,null,null,null,null,null,null,null,""]
[null,"10.1.2     ","I am aware of other costs and typical bills (e.g. TV licence, insurance, broadband etc.).",null,null,null,null,null,null,null,null,""]
[null,"10.1.3     ","I am aware of the process of renting a home (e.g. references; deposit; removals etc.).",null,null,null,null,null,null,null,null,""]
[null,"10.1.4","I am aware of ways to save energy around the house.",null,null,null,null,null,null,null,null,""]
[null,"10.1.5","I am aware of the features of and how to read common household bills (e.g. council tax/rates, water, gas etc.).",null,null,null,null,null,null,null,null,""]
[null,"10.1.6","I am aware of the existence of grants to fund improvements, aids and adaptations for a home.",null,null,null,null,null,null,null,null,""]
[null,"10.1.7","I am aware of the differences between social housing and private housing.",null,null,null,null,null,null,null,null,""]
[null,"10.1.8","I can signpost or refer customers to appropriate sources of information on renting, home ownership and housing advice.",null,null,null,null,null,null,null,null,""]
[null,"10.1.9","I am aware of scams and what to do if a customer has been the subject of a scam.",null,null,null,null,null,null,null,null,""]
[null,"TIER 2",null,null,null,null,null,null,null,null,null,""]
[null,"10.2.1 ","I have knowledge of the main features of tenancy agreements and the costs involved for landlord and tenant (e.g. agency fees and deposits).",null,null,null,null,null,null,null,null,""]
[null,"10.2.2","I have knowledge of availability of grants for moving costs.",null,null,null,null,null,null,null,null,""]
[null,"10.2.3","I have knowledge of tenant’s and landlord’s rights and responsibilities.",null,null,null,null,null,null,null,null,""]
[null,"10.2.4","I have knowledge of the grants to fund improvements, aids and adaptations for a home.",null,null,null,null,null,null,null,null,""]
[null,"10.2.5","I have an understanding of the advantages and disadvantages of renting versus buying a home.",null,null,null,null,null,null,null,null,""]
[null,"10.2.6","I have an understanding of the procedures used by main lenders.",null,null,null,null,null,null,null,null,""]
[null,"10.2.7","I have an understanding of the role of mortgage advisors.",null,null,null,null,null,null,null,null,""]
[null,"10.2.8","I have an understanding of the changes in personal circumstances that might affect an individual’s ability to pay their rent/mortgage.",null,null,null,null,null,null,null,null,""]
[null,"TIER 3",null,null,null,null,null,null,null,null,null,""]
[null,"10.3.1 ","I have familiarity with, and an ability to, confidently use online toolkits and calculators (e.g. stamp duty/land transaction tax calculators, mortgage affordability calculators etc.).",null,null,null,null,null,null,null,null,""]
[null,"10.3.2","I can support customers in accessing online portals and using toolkits, which might include completing information on their behalf.",null,null,null,null,null,null,null,null,""]
[null,null,null,null,null,null,null,null,null,null,null,""]
[null,null,null,null,null,null,null,null,null,null,null,""]
[null,null,null,null,null,null,null,null,null,null,null,""]
[null,"DOMAIN 11: PENSIONS\n\n\n\n\n \n\n\n",null,null,null,null,null,null,null,null,null,""]
[null,"TIER 1",null,null,null,null,null,null,null,null,null,""]
[null,"11.1.1 ","I am aware of the importance of retirement planning.",null,null,null,null,null,null,null,null,""]
[null,"11.1.2     ","I am aware of what a pension is and how to distinguish between different types.",null,null,null,null,null,null,null,null,""]
[null,"11.1.3     ","I am aware of what auto-enrolment is and how it works.",null,null,null,null,null,null,null,null,""]
[null,"11.1.4","I am aware of when and how the State Pension can be claimed and that it is based on an individual’s National  Insurance contributions.",null,null,null,null,null,null,null,null,""]
[null,"11.1.5","I can signpost or refer customers to appropriate sources of information on pensions and/or support for retirement planning.",null,null,null,null,null,null,null,null,""]
[null,"11.1.6","I am aware of scams and what to do if a customer has been the subject of a scam.",null,null,null,null,null,null,null,null,""]
[null,"TIER 2",null,null,null,null,null,null,null,null,null,""]
[null,"11.2.1 ","I have knowledge of the features and main differences between types of pension (e.g. State Pension, defined benefit, defined contribution etc.).",null,null,null,null,null,null,null,null,""]
[null,"11.2.2","I have knowledge of when and how the State Pension can be claimed and that it is based on an individual’s National Insurance contributions.",null,null,null,null,null,null,null,null,""]
[null,"11.2.3","I have knowledge of the advantages of retirement planning, including how to obtain a pension forecast.",null,null,null,null,null,null,null,null,""]
[null,"11.2.4","I have knowledge of how to read a pension statement.",null,null,null,null,null,null,null,null,""]
[null,"11.2.5","I have knowledge of the potential implications and effects of auto-enrolment on an individual’s circumstances.",null,null,null,null,null,null,null,null,""]
[null,"11.2.6","I have knowledge of pensions eligibility criteria.",null,null,null,null,null,null,null,null,""]
[null,"11.2.7","I have knowledge of the effect of deferring retirement pension.",null,null,null,null,null,null,null,null,""]
[null,"11.2.8","I have knowledge of entitlement to Additional State Pension.",null,null,null,null,null,null,null,null,""]
[null,"11.2.9","I have an understanding of the factors to take into account when considering investing in a pensions scheme.",null,null,null,null,null,null,null,null,""]
[null,"11.2.10","I have an understanding of pensions Law.",null,null,null,null,null,null,null,null,""]
[null,"11.2.11","I have an understanding of how the State Pension is calculated, its qualifying period and how to claim.",null,null,null,null,null,null,null,null,""]
[null,"11.2.12","I have an understanding of how to increase a State Pension.",null,null,null,null,null,null,null,null,""]
[null,"TIER 3",null,null,null,null,null,null,null,null,null,""]
[null,"11.3.1 ","I have knowledge of how to use specialist pensions and retirement calculators.",null,null,null,null,null,null,null,null,""]
[null,"11.3.2","I have knowledge of how to check on how much has been accrued in an individual’s pension pot.",null,null,null,null,null,null,null,null,""]
[null,"11.3.3","I have knowledge of how to resolve issues which arise during the claims process.",null,null,null,null,null,null,null,null,""]
[null,"11.3.4","I have knowledge of access to specialist support (e.g. The Pensions Advisory Service, Money Advice Service, Pensions Ombudsman, etc.).",null,null,null,null,null,null,null,null,""]
[null,"11.3.5","I have knowledge of how and when the Annual Allowance (AA) and Lifetime Allowance (LTA) rules apply, including knowledge of how the Tapered Annual Allowance applies, and the protections available to customers with benefits in excess of the LTA.",null,null,null,null,null,null,null,null,{"$f":"IF(J269=\"\",\"\",_xlfn.CONCAT(B269,\"-\",J269))","v":""}]
[null,"11.3.6","I have knowledge of the importance of safeguarded benefits within a pension, that customers should seek financial advice before they consider giving up these benefits and of the risks to customers who are considering a transfer of a DB pension to a DC arrangement.",null,null,null,null,null,null,null,null,""]
[null,null,null,null,null,null,null,null,null,null,null,""]
[null,null,null,null,null,null,null,null,null,null,null,""]
[null,null,null,null,null,null,null,null,null,null,null,""]
[null,"DOMAIN 12: PLANNING FOR LATER LIFE\n\n\n\n\n \n\n\n",null,null,null,null,null,null,null,null,null,""]
[null,"TIER 1",null,null,null,null,null,null,null,null,null,""]
[null,"12.1.1 ","I have awareness of what a will is and why you may have one.",null,null,null,null,null,null,null,null,""]
[null,"12.1.2     ","I have awareness of pre-paid funeral plans.",null,null,null,null,null,null,null,null,""]
[null,"12.1.3     ","I have awareness of the factors that contribute towards funeral costs (e.g. casket, cremation, burial etc.).",null,null,null,null,null,null,null,null,""]
[null,"12.1.4","I have awareness of support available nationally and locally for carers.",null,null,null,null,null,null,null,null,""]
[null,"12.1.5","I have awareness of the complexity of care costs.",null,null,null,null,null,null,null,null,""]
[null,"12.1.6","I have awareness of Power of Attorney and third party access.",null,null,null,null,null,null,null,null,""]
[null,"12.1.7","I can signpost or refer customers to appropriate sources of information and support.",null,null,null,null,null,null,null,null,""]
[null,"12.1.8","I have awareness of scams and what to do if a customer has been the subject of a scam.",null,null,null,null,null,null,null,null,""]
[null,"TIER 2",null,null,null,null,null,null,null,null,null,""]
[null,"12.2.1 ","I have knowledge of the process for creating a will.",null,null,null,null,null,null,null,null,""]
[null,"12.2.2","I have knowledge of the difference between a will and a trust.",null,null,null,null,null,null,null,null,""]
[null,"12.2.3","I have knowledge of what a pre-paid funeral plan usually includes and who provides them.",null,null,null,null,null,null,null,null,""]
[null,"12.2.4","I have knowledge of the eligibility criteria and application process for support for carers (e.g. Carers Allowance), and other routes such as NHS and Local Authority funding.",null,null,null,null,null,null,null,null,""]
[null,"12.2.5","I have knowledge of Power of Attorney, how to obtain it and the areas that it covers.",null,null,null,null,null,null,null,null,""]
[null,"12.2.6","I have knowledge of the impact of claiming support on other benefits entitlements.",null,null,null,null,null,null,null,null,""]
[null,"12.2.7","I have knowledge of inheritance tax, when this applies and when this doesn’t apply.",null,null,null,null,null,null,null,null,""]
[null,"12.2.8","I have knowledge of care costs and funding available (e.g. NHS continuing Healthcare, Local Authority funding support etc.).",null,null,null,null,null,null,null,null,""]
[null,"12.2.9","I have knowledge of equity release and recognise the limits of advice that can be given. It is important that you are aware of where the regulated boundaries are and do not go beyond them.",null,null,null,null,null,null,null,null,""]
[null,"TIER 3",null,null,null,null,null,null,null,null,null,""]
[null,"12.3.1 ","I have knowledge of the use of wills and trusts and the role of an Attorney and an Executor.",null,null,null,null,null,null,null,null,""]
[null,"12.3.2","I have knowledge of the regulations covering wills and legacy planning and recognise the limits of advice that can be given. It is important that you are aware of where the regulated boundaries are and do not go beyond them. ",null,null,null,null,null,null,null,null,""]
[null,"12.3.3","I have knowledge of the use of trusts and other structures to meet long-term wishes.",null,null,null,null,null,null,null,null,""]
[null,"12.3.4","I have knowledge of the impact of intestacy (including when partners are not married/civil partnership), powers of attorney or court protection.",null,null,null,null,null,null,null,null,""]
[null,"12.3.5","I have knowledge of care cost funding appeals processes.",null,null,null,null,null,null,null,null,""]
[null,"12.3.6","I have an understanding of probate and how this can affect liability for debts.",null,null,null,null,null,null,null,null,""]

{"sheet":"Step 4 Action plan","index":5,"n_rows":3,"n_cols":6,"rows_kept":3,"cut":false,"hidden":false,"merged":[[0,3,1,5],[2,5,4,5],[2,3,4,3],[2,4,4,4],[2,1,4,1],[2,2,4,2]]}
[null,null,null,"Action Plan "]
[]
[null,"Areas for development","Learning actions e.g. training, mentoring, shadowing or other CPD activities","Completion \ndate","Outcomes","Reflections / comments further actions"]